fUST/lending_fUST_20240217
["ID","MTS","AMOUNT","RATE_DAILY","PERIOD"]
[314262305,1708128643251,-153.0,0.00027123,2]
[314262307,1708128643260,-153.0,0.00027123,2]
[314262309,1708128643269,-620.00302143,0.00027179,2]
[314262311,1708128643277,-1588.70757312,0.00027297,2]
[314262313,1708128643287,-500.0,0.00027397,2]
[314262315,1708128643296,-500.0,0.00027397,2]
[314262317,1708128643305,-500.0,0.00027397,2]
[314262319,1708128643314,-196.88835892,0.00027397,2]
[314262321,1708128643323,-500.0,0.00027397,2]
[314262323,1708128643332,-855.06,0.00027397,2]
[314262325,1708128643341,-500.0,0.00027397,2]
[314262327,1708128643349,-500.0,0.00027397,2]
[314262329,1708128643358,-838.7,0.00027397,2]
[314262331,1708128643367,-500.0,0.00027397,2]
[314262333,1708128643377,-1678.91,0.00027397,2]
[314262335,1708128643387,-500.0,0.00027397,2]
[314262337,1708128643396,-709.18,0.00027397,2]
[314262339,1708128643404,-1569.44,0.00027397,2]
[314262341,1708128643413,-500.0,0.00027397,2]
[314262342,1708128643422,-500.0,0.00027397,2]
[314262345,1708128643432,-262.47761468,0.00027397,2]
[314262347,1708128643441,-618.12,0.00027397,2]
[314262349,1708128643450,-500.0,0.00027397,2]
[314262351,1708128643460,-500.0,0.00027397,2]
[314262353,1708128643469,-500.0,0.00027397,2]
[314262355,1708128643478,-500.0,0.00027397,2]
[314262357,1708128643487,-765.72,0.00027397,2]
[314262359,1708128643496,-915.69,0.00027397,2]
[314262360,1708128643506,-1214.9,0.00027397,2]
[314262362,1708128643515,-500.0,0.00027397,2]
[314262364,1708128643524,-1000.0,0.00027397,2]
[314262366,1708128643533,-500.0,0.00027397,2]
[314262368,1708128643542,-500.0,0.00027397,2]
[314262370,1708128643552,-500.0,0.00027397,2]
[314262373,1708128643562,-500.0,0.00027397,2]
[314262374,1708128643573,-500.0,0.00027397,2]
[314262376,1708128643584,-500.0,0.00027397,2]
[314262379,1708128643593,-155.0,0.00027397,2]
[314262381,1708128643603,-500.0,0.00027397,2]
[314262382,1708128643611,-650.64,0.00027397,2]
[314262384,1708128643620,-500.0,0.00027397,2]
[314262386,1708128643629,-500.0,0.00027397,2]
[314262388,1708128643638,-582.59,0.00027397,2]
[314262390,1708128643647,-500.0,0.00027397,2]
[314262392,1708128643661,-1338.02,0.00027397,2]
[314262394,1708128643671,-500.0,0.00027397,2]
[314262396,1708128643680,-13252.57,0.00027397,2]
[314262398,1708128643689,-1303.38,0.00027397,2]
[314262400,1708128643698,-500.0,0.00027397,2]
[314262402,1708128643707,-500.0,0.00027397,2]
[314262404,1708128643716,-3177.96,0.00027397,2]
[314262406,1708128643725,-500.0,0.00027397,2]
[314262408,1708128643735,-500.0,0.00027397,2]
[314262411,1708128643745,-500.0,0.00027397,2]
[314262413,1708128643756,-8924.54,0.00027397,2]
[314262415,1708128643765,-1283.88,0.00027397,2]
[314262417,1708128643775,-500.0,0.00027397,2]
[314262419,1708128643784,-661.51,0.00027397,2]
[314262421,1708128643796,-229.69975012,0.00027397,2]
[314262423,1708128643805,-7140.22,0.00027397,2]
[314262425,1708128643814,-500.0,0.00027397,2]
[314262427,1708128643824,-500.0,0.00027397,2]
[314262429,1708128643833,-825.53269552,0.00027397,2]
[314262431,1708128643842,-421.56178611,0.00027397,2]
[314262433,1708128643851,-1029.9,0.00027397,2]
[314262435,1708128643860,-2280.14,0.00027397,2]
[314262437,1708128643870,-864.71,0.00027397,2]
[314262449,1708128643956,-1851.36,0.00027397,2]
[314262451,1708128643982,-11685.35,0.00027397,2]
[314262453,1708128643992,-1202.52,0.00027397,2]
[314262456,1708128644001,-6407.36,0.00027397,2]
[314262457,1708128644010,-1018.81,0.00027397,2]
[314262460,1708128644019,-2649.31239308,0.00027397,2]
[314266282,1708129838359,-471.62326606,0.00021828,2]
[314266284,1708129838368,-163.83177483,0.00021829,2]
[314266286,1708129838378,-1086.67046698,0.00021928,2]
[314266288,1708129838390,-506.48176332,0.00021928,2]
[314266609,1708129841606,-5260.39124484,0.00021928,2]
[314266611,1708129841617,-217.78296899,0.00021928,2]
[314266613,1708129841626,-11249.05312861,0.00021929,2]
[314266615,1708129841635,-2239.01719902,0.00021929,2]
[314266619,1708129841663,-297.91664767,0.00021929,2]
[314266620,1708129841674,-128.55107777,0.00021929,2]
[314266621,1708129841684,-3855.34892223,0.00021929,2]
[314266824,1708129843300,-500.0,0.00021929,2]
[314266832,1708129843358,-1883.09590642,0.00021929,2]
[314266834,1708129843370,-768.62547689,0.00021929,2]
[314266836,1708129843379,-2100.85534453,0.00021929,2]
[314266838,1708129843388,-159.567591,0.00021938,2]
[314266840,1708129843398,-200.0,0.00023024,7]
[314266843,1708129843407,-159.767966,0.00023105,2]
[314266845,1708129843416,-24223.1370165,0.00023696,2]
[314266859,1708129843426,-715.4821902,0.00023838,2]
[314266862,1708129843542,-166.666666,0.00024775,2]
[314266864,1708129843551,-280.0,0.00025327,7]
[314266866,1708129843560,-166.666666,0.0002545,2]
[314266868,1708129843569,-166.666666,0.00026126,2]
[314266870,1708129843578,-186.22754321,0.0002642,3]
[314266872,1708129843587,-198.6920409,0.0002642,3]
[314266874,1708129843596,-227.3223542,0.0002642,3]
[314266876,1708129843605,-460.53104971,0.0002642,3]
[314266878,1708129843614,-197.37044988,0.0002642,3]
[314266880,1708129843624,-153.0,0.00026578,2]
[314266882,1708129843633,-153.0,0.00026678,2]
[314266884,1708129843642,-153.0,0.00026678,2]
[314266886,1708129843651,-153.0,0.00026678,2]
[314266888,1708129843659,-521.0231136,0.00026678,2]
[314266890,1708129843668,-166.666666,0.00026801,2]
[314266892,1708129843678,-153.0,0.00026878,2]
[314266894,1708129843687,-620.00015107,0.00027111,2]
[314266896,1708129843696,-153.0,0.00027123,2]
[314266898,1708129843705,-153.0,0.00027123,2]
[314266901,1708129843725,-153.0,0.00027123,2]
[314266903,1708129843736,-376.5014956,0.00027123,2]
[314266905,1708129843746,-361.9620762,0.00027123,2]
[314266907,1708129843756,-306.0,0.00027123,2]
[314266909,1708129843765,-250.0,0.00027387,3]
[314266911,1708129843775,-250.0,0.00027387,3]
[314266914,1708129843785,-4122.63,0.00027387,3]
[314266916,1708129843794,-3435.52,0.00027387,3]
[314266918,1708129843803,-679.63,0.00027397,2]
[314266920,1708129843813,-500.0,0.00027397,2]
[314266922,1708129843822,-500.0,0.00027397,2]
[314266924,1708129843831,-500.0,0.00027397,2]
[314266926,1708129843840,-500.0,0.00027397,2]
[314266928,1708129843850,-500.0,0.00027397,2]
[314266930,1708129843860,-306.27451534,0.00027397,2]
[314266932,1708129843869,-877.54,0.00027397,2]
[314266934,1708129843879,-534.47564354,0.00027397,2]
[314266936,1708129843888,-1000.0,0.00027397,2]
[314266938,1708129843898,-500.0,0.00027397,2]
[314266941,1708129843907,-500.0,0.00027397,2]
[314266943,1708129843918,-3045.55,0.00027397,2]
[314266945,1708129843927,-500.0,0.00027397,2]
[314266947,1708129843936,-500.0,0.00027397,2]
[314266949,1708129843946,-733.82,0.00027397,2]
[314266951,1708129843955,-500.0,0.00027397,2]
[314266953,1708129843966,-1164.28,0.00027397,2]
[314266955,1708129843975,-363.06786975,0.00027397,2]
[314266957,1708129843985,-500.0,0.00027397,2]
[314266959,1708129843994,-500.0,0.00027397,2]
[314266961,1708129844003,-500.0,0.00027397,2]
[314266963,1708129844012,-500.0,0.00027397,2]
[314266965,1708129844022,-500.0,0.00027397,2]
[314266967,1708129844035,-500.0,0.00027397,2]
[314266969,1708129844045,-623.53,0.00027397,2]
[314266971,1708129844054,-500.0,0.00027397,2]
[314266973,1708129844063,-558.31,0.00027397,2]
[314266975,1708129844073,-986.98,0.00027397,2]
[314266977,1708129844082,-500.0,0.00027397,2]
[314266979,1708129844092,-12700.38,0.00027397,2]
[314266981,1708129844102,-6140.39,0.00027397,2]
[314266983,1708129844112,-500.0,0.00027397,2]
[314266985,1708129844121,-500.0,0.00027397,2]
[314266987,1708129844130,-4965.12,0.00027397,2]
[314266989,1708129844140,-500.0,0.00027397,2]
[314266991,1708129844150,-1909.53,0.00027397,2]
[314266993,1708129844160,-500.0,0.00027397,2]
[314266995,1708129844169,-500.0,0.00027397,2]
[314266998,1708129844179,-500.0,0.00027397,2]
[314267000,1708129844189,-500.0,0.00027397,2]
[314267002,1708129844199,-633.94,0.00027397,2]
[314267003,1708129844208,-500.0,0.00027397,2]
[314267005,1708129844218,-1774.22,0.00027397,2]
[314267008,1708129844227,-2185.13,0.00027397,2]
[314267010,1708129844236,-1023.95,0.00027397,2]
[314267012,1708129844246,-1230.38,0.00027397,2]
[314267014,1708129844257,-155.0,0.00027397,2]
[314267015,1708129844266,-976.36,0.00027397,2]
[314267018,1708129844276,-1249.08,0.00027397,2]
[314267020,1708129844285,-798.82,0.00027397,2]
[314267022,1708129844295,-1505.05,0.00027397,2]
[314267024,1708129844304,-1109.52,0.00027397,2]
[314267026,1708129844314,-8552.68,0.00027397,2]
[314267028,1708129844324,-11198.46,0.00027397,2]
[314267030,1708129844333,-500.0,0.00027397,2]
[314267032,1708129844343,-819.44,0.00027397,2]
[314267034,1708129844352,-500.0,0.00027397,2]
[314267036,1708129844361,-6842.71,0.00027397,2]
[314267038,1708129844370,-457.31117144,0.00027397,2]
[314267040,1708129844380,-828.68,0.00027397,2]
[314267042,1708129844390,-1248.61,0.00027397,2]
[314267044,1708129844399,-1152.41,0.00027397,2]
[314267046,1708129844408,-500.0,0.00027397,2]
[314267048,1708129844418,-419.8810677,0.00027397,2]
[314267050,1708129844427,-1608.96,0.00027397,2]
[314267052,1708129844436,-1282.26,0.00027397,2]
[314267054,1708129844445,-803.75,0.00027397,2]
[314267056,1708129844454,-1504.05,0.00027397,2]
[314267058,1708129844464,-500.0,0.00027397,2]
[314267060,1708129844473,-737.4,0.00027397,2]
[314267062,1708129844482,-8525.01,0.00027397,2]
[314267064,1708129844492,-500.0,0.00027397,2]
[314267066,1708129844501,-153.0,0.000274,2]
[314267068,1708129844510,-166.666666,0.00027477,2]
[314267070,1708129844520,-11340.68343943,0.000275,2]
[314267072,1708129844529,-150.1,0.00027507,2]
[314267074,1708129844538,-500.0,0.00027534,2]
[314267076,1708129844548,-352.56140896,0.0002767,2]
[314267078,1708129844557,-679.63,0.00027671,2]
[314267080,1708129844569,-500.0,0.00027671,2]
[314267082,1708129844578,-500.0,0.00027671,2]
[314267084,1708129844587,-500.0,0.00027671,2]
[314267086,1708129844596,-877.54,0.00027671,2]
[314267088,1708129844606,-1000.0,0.00027671,2]
[314267090,1708129844615,-500.0,0.00027671,2]
[314267092,1708129844624,-598.95621222,0.00027671,2]
[314267094,1708129844633,-3045.55,0.00027671,2]
[314267096,1708129844643,-500.0,0.00027671,2]
[314267098,1708129844653,-500.0,0.00027671,2]
[314267100,1708129844662,-733.82,0.00027671,2]
[314267102,1708129844672,-500.0,0.00027671,2]
[314267104,1708129844681,-1164.28,0.00027671,2]
[314267106,1708129844691,-500.0,0.00027671,2]
[314267108,1708129844700,-500.0,0.00027671,2]
[314267110,1708129844710,-500.0,0.00027671,2]
[314267112,1708129844719,-500.0,0.00027671,2]
[314267114,1708129844728,-500.0,0.00027671,2]
[314267116,1708129844737,-623.53,0.00027671,2]
[314267118,1708129844746,-500.0,0.00027671,2]
[314267120,1708129844755,-558.31,0.00027671,2]
[314267121,1708129844765,-986.98,0.00027671,2]
[314267123,1708129844774,-500.0,0.00027671,2]
[314267125,1708129844783,-12700.38,0.00027671,2]
[314267127,1708129844793,-6140.39,0.00027671,2]
[314267129,1708129844802,-500.0,0.00027671,2]
[314267131,1708129844811,-500.0,0.00027671,2]
[314267134,1708129844824,-4965.12,0.00027671,2]
[314267136,1708129844833,-500.0,0.00027671,2]
[314267138,1708129844843,-1909.53,0.00027671,2]
[314267140,1708129844852,-500.0,0.00027671,2]
[314267142,1708129844861,-500.0,0.00027671,2]
[314267143,1708129844872,-500.0,0.00027671,2]
[314267146,1708129844882,-500.0,0.00027671,2]
[314267147,1708129844891,-633.94,0.00027671,2]
[314267149,1708129844900,-500.0,0.00027671,2]
[314267151,1708129844909,-1774.22,0.00027671,2]
[314267153,1708129844919,-2185.13,0.00027671,2]
[314267155,1708129844928,-1023.95,0.00027671,2]
[314267157,1708129844937,-1230.38,0.00027671,2]
[314267159,1708129844947,-976.36,0.00027671,2]
[314267161,1708129844957,-1249.08,0.00027671,2]
[314267163,1708129844966,-798.82,0.00027671,2]
[314267165,1708129844975,-1505.05,0.00027671,2]
[314267168,1708129844985,-1109.52,0.00027671,2]
[314267170,1708129844994,-8552.68,0.00027671,2]
[314267171,1708129845004,-11198.46,0.00027671,2]
[314267173,1708129845013,-500.0,0.00027671,2]
[314267176,1708129845023,-819.44,0.00027671,2]
[314267178,1708129845036,-500.0,0.00027671,2]
[314267179,1708129845045,-3572.06948213,0.00027671,2]
[314267756,1708130392593,550.08,0.000194,2]
[314267758,1708130657135,1292.12192719,0.000194,2]
[314267759,1708130671105,1292.12192719,0.000194,2]
[314267761,1708130684337,1292.12192719,0.000194,2]
[314267764,1708130725442,1292.12192719,0.000194,2]
[314267766,1708130758803,1292.12192719,0.000194,2]
[314267767,1708130776770,1292.12192719,0.000194,2]
[314267768,1708130794760,1292.12192719,0.000194,2]
[314267769,1708130810769,1292.12192719,0.000194,2]
[314267770,1708130830767,1292.12192719,0.000194,2]
[314267771,1708130848784,1292.12192719,0.000194,2]
[314267772,1708130864790,1292.12192719,0.000194,2]
[314267773,1708130886787,456.22157606,0.000194,2]
[314267871,1708131038714,-471.62326606,0.00021272,2]
[314267873,1708131038723,-5000.0,0.00021273,2]
[314267875,1708131038733,-450.57099958,0.00021707,2]
[314267877,1708131038745,-500.0,0.00021707,2]
[314268187,1708131041897,-46.80152147,0.00021707,2]
[314268189,1708131041906,-821.70480516,0.00021929,2]
[314268191,1708131041915,-1842.84816318,0.00021929,2]
[314268194,1708131041928,-92.49341516,0.00021929,2]
[314268196,1708131041937,-200.0,0.00023024,7]
[314268198,1708131041946,-166.666666,0.00024897,2]
[314268200,1708131041955,-280.0,0.00025327,7]
[314268201,1708131041964,-166.666666,0.00025575,2]
[314268203,1708131041973,-166.666666,0.00026254,2]
[314268205,1708131041983,-157.98649917,0.0002642,3]
[314268207,1708131041992,-225.7809907,0.00026613,2]
[314268209,1708131042001,-1553.66371396,0.00026663,2]
[314268212,1708131042015,-1185.58919883,0.00026663,2]
[314268214,1708131042026,-2260.74708721,0.00026663,2]
[314268216,1708131042036,-5000.0,0.00026663,2]
[314268218,1708131042045,-308.5108259,0.00026778,2]
[314268220,1708131042055,-166.666666,0.00026933,2]
[314268222,1708131042064,-8455.21472382,0.00027,2]
[314268224,1708131042074,-470.70703424,0.00027387,3]
[314268226,1708131042085,-267.36304732,0.00027387,3]
[314268229,1708131042096,-1306.29991844,0.00027387,3]
[314268230,1708131042105,-715.26389569,0.00027387,3]
[314269929,1708132241131,-471.62326606,0.00019863,2]
[314269930,1708132241141,-158.56869746,0.00019864,2]
[314269931,1708132241150,-1561.85968256,0.00019965,2]
[314269932,1708132241162,-996.28439946,0.00019965,2]
[314269940,1708132242758,-1887.39494005,0.00019965,2]
[314269941,1708132242770,-554.46097793,0.00019965,2]
[314269942,1708132242780,-566.64964962,0.00021,2]
[314269943,1708132242789,-159.896641,0.00021891,2]
[314269944,1708132242798,-909.51964118,0.00021895,2]
[314269945,1708132242814,-2090.48035882,0.00021895,2]
[314269946,1708132242824,-573.52002443,0.00021987,2]
[314269955,1708132245892,-2025.21076178,0.00021987,2]
[314269956,1708132245903,-442.26593659,0.00021987,2]
[314269957,1708132245912,-814.081446,0.00021987,2]
[314269958,1708132245921,-24900.0,0.00022545,2]
[314269959,1708132245931,-200.0,0.00023085,7]
[314269960,1708132245940,-166.666666,0.00024658,2]
[314269961,1708132245949,-242.45120471,0.000249,2]
[314269962,1708132245959,-166.666666,0.00025235,2]
[314269963,1708132245968,-280.0,0.00025394,7]
[314269964,1708132245977,-166.666666,0.00025812,2]
[314269965,1708132245986,-166.666666,0.00026388,2]
[314269966,1708132245995,-161.8185722,0.0002642,3]
[314269967,1708132246005,-5000.0,0.00026682,2]
[314269968,1708132246014,-368.492797,0.00026778,2]
[314269969,1708132246023,-166.666666,0.00026965,2]
[314269970,1708132246033,-1589.11950608,0.00027112,2]
[314269971,1708132246042,-153.0,0.00027123,2]
[314269972,1708132246051,-307.6104457,0.00027123,2]
[314269973,1708132246060,-153.0,0.00027123,2]
[314269974,1708132246070,-246.1694192,0.00027123,2]
[314269975,1708132246079,-153.0,0.00027123,2]
[314269976,1708132246088,-157.64395396,0.00027287,2]
[314269977,1708132246097,-1020.2035626,0.00027387,2]
[314269978,1708132246106,-750.0,0.00027387,3]
[314269979,1708132246115,-3495.25,0.00027387,3]
[314269980,1708132246124,-2912.71,0.00027387,3]
[314269981,1708132246133,-2427.26,0.00027387,3]
[314269982,1708132246142,-500.0,0.00027397,2]
[314269983,1708132246151,-500.0,0.00027397,2]
[314269984,1708132246160,-500.0,0.00027397,2]
[314269985,1708132246170,-500.0,0.00027397,2]
[314269986,1708132246179,-751.15,0.00027397,2]
[314269987,1708132246191,-770.26,0.00027397,2]
[314269988,1708132246201,-500.0,0.00027397,2]
[314269989,1708132246211,-500.0,0.00027397,2]
[314269990,1708132246220,-622.99,0.00027397,2]
[314269991,1708132246230,-500.0,0.00027397,2]
[314269992,1708132246239,-500.0,0.00027397,2]
[314269993,1708132246249,-500.0,0.00027397,2]
[314269994,1708132246258,-672.67,0.00027397,2]
[314269995,1708132246269,-804.41,0.00027397,2]
[314269996,1708132246278,-1067.26,0.00027397,2]
[314269997,1708132246287,-500.0,0.00027397,2]
[314269998,1708132246296,-500.0,0.00027397,2]
[314269999,1708132246306,-1000.0,0.00027397,2]
[314270000,1708132246315,-500.0,0.00027397,2]
[314270001,1708132246324,-571.57,0.00027397,2]
[314270002,1708132246334,-500.0,0.00027397,2]
[314270003,1708132246343,-511.79,0.00027397,2]
[314270004,1708132246353,-500.0,0.00027397,2]
[314270005,1708132246363,-500.0,0.00027397,2]
[314270006,1708132246372,-2791.75,0.00027397,2]
[314270007,1708132246382,-500.0,0.00027397,2]
[314270008,1708132246391,-500.0,0.00027397,2]
[314270009,1708132246400,-1127.85,0.00027397,2]
[314270010,1708132246410,-794.15,0.00027397,2]
[314270011,1708132246419,-500.0,0.00027397,2]
[314270012,1708132246428,-500.0,0.00027397,2]
[314270013,1708132246438,-904.74,0.00027397,2]
[314270014,1708132246458,-1104.39,0.00027397,2]
[314270015,1708132246468,-268.95478802,0.00027397,2]
[314270016,1708132246478,-500.0,0.00027397,2]
[314270017,1708132246487,-581.12,0.00027397,2]
[314270018,1708132246496,-5628.69,0.00027397,2]
[314270019,1708132246506,-1626.37,0.00027397,2]
[314270020,1708132246516,-1547.75053694,0.00027397,2]
[314270022,1708132429447,5000.0,0.000194,2]
[314270023,1708132634600,10000.0,0.000194,2]
[314270024,1708132641872,10000.0,0.000194,2]
[314270025,1708132653104,10000.0,0.000194,2]
[314270026,1708132661330,10000.0,0.000194,2]
[314270027,1708132669779,10000.0,0.000194,2]
[314270028,1708132677161,10000.0,0.000194,2]
[314270029,1708132684202,10000.0,0.000194,2]
[314270030,1708132702259,7338.9,0.000194,2]
[314270031,1708132999190,5000.0,0.00022,7]
[314270032,1708133007159,5000.0,0.00022,7]
[314270033,1708133015779,5000.0,0.00022,7]
[314270034,1708133024317,5000.0,0.00022,7]
[314270035,1708133032865,5000.0,0.00022,10]
[314270036,1708133041484,5000.0,0.00022,10]
[314270037,1708133049323,5000.0,0.00022,10]
[314270038,1708133058503,3924.6091869,0.00022,10]
[314270040,1708133237531,2695.0,0.00033,120]
[314270080,1708133431983,-325.14397417,0.00021914,2]
[314270088,1708133432048,-146.47929189,0.00021914,2]
[314270090,1708133432058,-293.08570811,0.00021915,2]
[314270093,1708133432074,-2456.02259695,0.00021915,2]
[314270095,1708133432082,-685.81793175,0.00022015,2]
[314270097,1708133432096,-181.65152009,0.00022015,2]
[314270099,1708133432105,-109.11591392,0.00022015,2]
[314270333,1708133441321,-2470.14341978,0.00022015,2]
[314270334,1708133441333,-2027.22830977,0.00022015,2]
[314270343,1708133442976,-342.19007201,0.00022015,2]
[314270345,1708133443082,-847.56644233,0.00022015,2]
[314270346,1708133443095,-2414.59340217,0.00022015,2]
[314270347,1708133443185,-166.666666,0.00025211,2]
[314270348,1708133443217,-161.63413647,0.00025297,2]
[314270349,1708133443226,-439.565,0.00025676,2]
[314270350,1708133443235,-330.5827492,0.00025676,2]
[314270351,1708133443244,-171.26402949,0.00026419,2]
[314270352,1708133443253,-349.57988456,0.0002642,3]
[314270353,1708133443262,-468.85367442,0.0002642,3]
[314270354,1708133443270,-157.64395396,0.00027297,2]
[314270355,1708133443279,-425.0528987,0.000273,2]
[314270356,1708133443288,-300.0,0.000273,13]
[314270357,1708133443297,-750.0,0.00027387,3]
[314270358,1708133443306,-413.05968,0.00027397,2]
[314270359,1708133443315,-597.03,0.00027397,2]
[314270360,1708133443324,-500.0,0.00027397,2]
[314270361,1708133443332,-416.1577596,0.00027397,2]
[314270362,1708133443348,-83.8422404,0.00027397,2]
[314270363,1708133443357,-770.89,0.00027397,2]
[314270364,1708133443366,-1000.0,0.00027397,2]
[314270365,1708133443374,-1541.92,0.00027397,2]
[314270366,1708133443383,-1441.38,0.00027397,2]
[314270367,1708133443392,-500.0,0.00027397,2]
[314270368,1708133443401,-500.0,0.00027397,2]
[314270369,1708133443409,-953.12604479,0.00027397,2]
[314270378,1708133446082,-479.293978,0.000265,2]
[314270379,1708133446092,-576.20798546,0.00027387,3]
[314270380,1708133446131,-2766.32201454,0.00027387,3]
[314270381,1708133446141,-1722.30395521,0.00027397,2]
[314270382,1708133446151,-500.0,0.00027397,2]
[314270383,1708133446160,-500.0,0.00027397,2]
[314270384,1708133446169,-644.64,0.00027397,2]
[314270385,1708133446180,-500.0,0.00027397,2]
[314270386,1708133446190,-500.0,0.00027397,2]
[314270387,1708133446199,-500.0,0.00027397,2]
[314270388,1708133446209,-1022.79,0.00027397,2]
[314270389,1708133446218,-500.0,0.00027397,2]
[314270390,1708133446228,-500.0,0.00027397,2]
[314270391,1708133446238,-500.0,0.00027397,2]
[314270392,1708133446248,-500.0,0.00027397,2]
[314270393,1708133446257,-500.0,0.00027397,2]
[314270394,1708133446268,-547.75,0.00027397,2]
[314270395,1708133446278,-294.19402215,0.00027397,2]
[314270423,1708134632259,-394.41643947,0.00022025,2]
[314270445,1708134638170,-77.21399279,0.00022025,2]
[314270448,1708134638188,-2384.28274659,0.00022026,2]
[314270450,1708134638201,-277.7044881,0.00023507,2]
[314270452,1708134638210,-150.0,0.00024507,2]
[314270454,1708134638220,-160.93479,0.00025062,2]
[314270456,1708134638229,-171.26402949,0.00025292,2]
[314270458,1708134638240,-331.11238414,0.00025297,2]
[314270460,1708134638249,-654.03760308,0.00025495,2]
[314270462,1708134638264,-1424.35157719,0.00025495,2]
[314270546,1708134643242,-8977.54066525,0.00025495,2]
[314270634,1708135832387,-295.07125183,0.00020784,2]
[314270636,1708135832397,-24900.0,0.00020785,2]
[314270637,1708135832407,-471.63043226,0.00020941,2]
[314270639,1708135832416,-227.066744,0.00020942,2]
[314270640,1708135832425,-297.31346924,0.00021,2]
[314270641,1708135832435,-527.16300919,0.00021,2]
[314270642,1708135832445,-195.19010052,0.00021,2]
[314270643,1708135832455,-751.24711546,0.00021,2]
[314270644,1708135832464,-250.0,0.00021451,2]
[314270645,1708135832474,-2111.45385886,0.00022041,2]
[314270646,1708135832484,-3847.65462465,0.00022056,2]
[314270647,1708135832493,-21117.69507381,0.00022072,2]
[314270648,1708135832503,-8698.89567805,0.00022088,2]
[314270649,1708135832512,-4183.3604945,0.00022088,2]
[314270650,1708135832521,-200.0,0.00023158,7]
[314270651,1708135832530,-220.74158942,0.00023395,2]
[314270653,1708135832539,-166.666666,0.00024658,2]
[314270655,1708135832548,-4759.08,0.0002497,3]
[314270656,1708135832558,-6853.07,0.0002498,3]
[314270658,1708135832568,-154.821548,0.0002498,2]
[314270659,1708135832578,-3593.76,0.0002499,3]
[314270661,1708135832587,-166.666666,0.00025235,2]
[314270662,1708135832596,-4742.55224727,0.0002546,2]
[314270663,1708135832605,-1106.41331357,0.00025461,2]
[314270664,1708135832614,-280.0,0.00025474,7]
[314270665,1708135832623,-169.9383981,0.00025488,2]
[314270667,1708135832633,-150.0,0.00025507,2]
[314270668,1708135832642,-166.666666,0.00025812,2]
[314270669,1708135832652,-307.5438624,0.00025956,2]
[314270670,1708135832662,-151.0,0.00026301,2]
[314270671,1708135832671,-151.0,0.00026301,2]
[314270672,1708135832681,-154.3646948,0.00026301,2]
[314270673,1708135832690,-153.6383656,0.00026301,2]
[314270674,1708135832699,-308.5814078,0.00026301,2]
[314270675,1708135832709,-200.1809906,0.00026301,2]
[314270676,1708135832718,-154.2227723,0.00026301,2]
[314270677,1708135832728,-153.0,0.00026301,2]
[314270678,1708135832737,-153.0,0.00026301,2]
[314270679,1708135832747,-200.2824076,0.00026301,2]
[314270680,1708135832757,-153.0,0.00026301,2]
[314270681,1708135832767,-153.0,0.00026301,2]
[314270682,1708135832777,-153.0,0.00026301,2]
[314270683,1708135832786,-153.0,0.00026301,2]
[314270684,1708135832795,-200.2824076,0.00026301,2]
[314270685,1708135832804,-153.0,0.00026301,2]
[314270686,1708135832816,-153.0,0.00026301,2]
[314270687,1708135832825,-200.2824076,0.00026301,2]
[314270688,1708135832835,-153.0,0.00026301,2]
[314270689,1708135832845,-200.2824076,0.00026301,2]
[314270690,1708135832855,-153.0,0.00026301,2]
[314270691,1708135832865,-153.0,0.00026301,2]